[Event "Live Chess"]
[Site "Chess.com"]
[Date "2023.05.20"]
[Round "-"]
[White "ShanthamGrarks"]
[Black "JackCheetham1"]
[Result "1/2-1/2"]
[WhiteElo "1873"]
[BlackElo "1699"]
[TimeControl "300"]
[EndTime "15:06:37 PDT"]
[Termination "Game drawn - timeout vs insufficient material"]

1. d4 {[%clk 0:04:56.4]} 1... Nf6 {[%clk 0:04:58.9]} 2. Nc3 {[%clk 0:04:55.2]}
2... e6 {[%clk 0:04:58.2]} 3. e4 {[%clk 0:04:54.6]} 3... d5 {[%clk 0:04:56.6]}
4. Bg5 {[%clk 0:04:53.9]} 4... Be7 {[%clk 0:04:53.1]} 5. e5 {[%clk 0:04:53.1]}
5... Nfd7 {[%clk 0:04:52]} 6. h4 {[%clk 0:04:52.7]} 6... Bxg5 {[%clk 0:04:43.3]}
7. hxg5 {[%clk 0:04:51.6]} 7... Qxg5 {[%clk 0:04:40.9]} 8. Qd3 {[%clk
0:04:49.7]} 8... h6 {[%clk 0:04:26.9]} 9. Nh3 {[%clk 0:04:47]} 9... Qe7 {[%clk
0:04:23.5]} 10. Nf4 {[%clk 0:04:45.2]} 10... c5 {[%clk 0:04:19.7]} 11. Ncxd5
{[%clk 0:04:43.3]} 11... exd5 {[%clk 0:04:08.9]} 12. Nxd5 {[%clk 0:04:42.7]}
12... Qd8 {[%clk 0:04:03]} 13. Qg3 {[%clk 0:04:33.5]} 13... g6 {[%clk
0:03:32.4]} 14. e6 {[%clk 0:04:27.1]} 14... Nf6 {[%clk 0:03:17.8]} 15. exf7+
{[%clk 0:04:23.2]} 15... Kxf7 {[%clk 0:03:11.7]} 16. Nc7 {[%clk 0:04:09.2]}
16... Qe7+ {[%clk 0:03:02.3]} 17. Kd1 {[%clk 0:04:05.4]} 17... Nc6 {[%clk
0:02:43.2]} 18. Bc4+ {[%clk 0:04:02.2]} 18... Kg7 {[%clk 0:02:36.9]} 19. Re1
{[%clk 0:03:58.9]} 19... Qf8 {[%clk 0:02:22.3]} 20. Be6 {[%clk 0:03:36.4]} 20...
Nxd4 {[%clk 0:01:58.7]} 21. Bxc8 {[%clk 0:03:34.1]} 21... Rxc8 {[%clk
0:01:56.5]} 22. c3 {[%clk 0:03:33.2]} 22... Qf7 {[%clk 0:01:47.5]} 23. cxd4
{[%clk 0:03:08.5]} 23... Rxc7 {[%clk 0:01:39.6]} 24. Rc1 {[%clk 0:02:54.9]}
24... Rd8 {[%clk 0:01:30.8]} 25. Ke2 {[%clk 0:02:24.5]} 25... Re7+ {[%clk
0:01:26.6]} 26. Kf1 {[%clk 0:02:23.4]} 26... Rxe1+ {[%clk 0:01:22.1]} 27. Rxe1
{[%clk 0:02:20.3]} 27... cxd4 {[%clk 0:01:15.2]} 28. Rd1 {[%clk 0:02:10.9]}
28... Ne4 {[%clk 0:01:08.4]} 29. Qh4 {[%clk 0:02:01.7]} 29... Nf6 {[%clk
0:00:54.4]} 30. Rxd4 {[%clk 0:01:58.1]} 30... Rxd4 {[%clk 0:00:51.9]} 31. Qxd4
{[%clk 0:01:58]} 31... a6 {[%clk 0:00:42.8]} 32. b3 {[%clk 0:01:56.2]} 32... Qd7
{[%clk 0:00:40.5]} 33. Qa1 {[%clk 0:01:45.4]} 33... Qd3+ {[%clk 0:00:38]} 34.
Kg1 {[%clk 0:01:44.5]} 34... g5 {[%clk 0:00:28.3]} 35. Qe5 {[%clk 0:01:43.2]}
35... Qg6 {[%clk 0:00:25.5]} 36. f3 {[%clk 0:01:38.9]} 36... Qb1+ {[%clk
0:00:23]} 37. Kh2 {[%clk 0:01:37.5]} 37... Qg6 {[%clk 0:00:21.8]} 38. a4 {[%clk
0:01:35.1]} 38... Kh7 {[%clk 0:00:18.7]} 39. Qe7+ {[%clk 0:01:33.4]} 39... Qg7
{[%clk 0:00:17.8]} 40. Qb4 {[%clk 0:01:30.4]} 40... Qc7+ {[%clk 0:00:15.7]} 41.
g3 {[%clk 0:01:23.1]} 41... Nh5 {[%clk 0:00:11.1]} 42. Qe4+ {[%clk 0:01:18.1]}
42... Kg7 {[%clk 0:00:08.1]} 43. Qe1 {[%clk 0:01:14]} 43... Nxg3 {[%clk
0:00:04.8]} 44. Qxg3 {[%clk 0:01:11.7]} 44... Qxg3+ {[%clk 0:00:04.7]} 45. Kxg3
{[%clk 0:01:10.6]} 45... Kg6 {[%clk 0:00:04.6]} 46. b4 {[%clk 0:01:06.5]} 46...
h5 {[%clk 0:00:04.1]} 47. b5 {[%clk 0:01:03.2]} 47... Kf5 {[%clk 0:00:03.5]} 48.
bxa6 {[%clk 0:01:01.7]} 48... bxa6 {[%clk 0:00:03.4]} 49. a5 {[%clk 0:01:00.8]}
49... h4+ {[%clk 0:00:02.1]} 50. Kg2 {[%clk 0:00:57.7]} 50... Kf4 {[%clk
0:00:02]} 51. Kf2 {[%clk 0:00:57]} 51... g4 {[%clk 0:00:01.1]} 52. fxg4 {[%clk
0:00:56.4]} 52... Kxg4 {[%clk 0:00:01]} 53. Kg2 {[%clk 0:00:55.8]} 53... h3+
{[%clk 0:00:00.9]} 54. Kh2 {[%clk 0:00:54.8]} 54... Kf4 {[%clk 0:00:00.8]} 55.
Kxh3 {[%clk 0:00:53.5]} 55... Ke4 {[%clk 0:00:00.7]} 56. Kg2 {[%clk 0:00:52.9]}
56... Kd4 {[%clk 0:00:00.6]} 57. Kf1 {[%clk 0:00:52.4]} 57... Kc4 {[%clk
0:00:00.5]} 58. Ke1 {[%clk 0:00:51.9]} 58... Kb5 {[%clk 0:00:00.4]} 59. Kd1
{[%clk 0:00:51.4]} 59... Kxa5 {[%clk 0:00:00.3]} 60. Kc2 {[%clk 0:00:50.8]}
60... Kb4 {[%clk 0:00:00.2]} 61. Kb2 {[%clk 0:00:50]} 61... a5 {[%clk
0:00:00.1]} 62. Ka1 {[%clk 0:00:49.5]} 1/2-1/2

[Event "Live Chess"]
[Site "Chess.com"]
[Date "2023.05.20"]
[Round "-"]
[White "HonestJoe1"]
[Black "Brooms1989"]
[Result "1/2-1/2"]
[WhiteElo "2115"]
[BlackElo "1063"]
[TimeControl "300"]
[EndTime "15:06:53 PDT"]
[Termination "Game drawn by repetition"]

1. d4 {[%clk 0:04:57.1]} 1... Nf6 {[%clk 0:04:56.7]} 2. c4 {[%clk 0:04:55.5]}
2... g6 {[%clk 0:04:55.3]} 3. Nc3 {[%clk 0:04:54.1]} 3... Bg7 {[%clk 0:04:53.8]}
4. e4 {[%clk 0:04:52.8]} 4... d6 {[%clk 0:04:53.1]} 5. Nge2 {[%clk 0:04:51.8]}
5... O-O {[%clk 0:04:51.4]} 6. Ng3 {[%clk 0:04:50.7]} 6... Nbd7 {[%clk
0:04:39.9]} 7. Be2 {[%clk 0:04:49]} 7... e5 {[%clk 0:04:38]} 8. d5 {[%clk
0:04:47.9]} 8... Nb6 {[%clk 0:04:32.4]} 9. h4 {[%clk 0:04:43.5]} 9... c6 {[%clk
0:04:26]} 10. h5 {[%clk 0:04:41.1]} 10... gxh5 {[%clk 0:04:16.4]} 11. Nxh5
{[%clk 0:04:32.4]} 11... Nxh5 {[%clk 0:04:11.9]} 12. Rxh5 {[%clk 0:04:30.3]}
12... cxd5 {[%clk 0:03:52.7]} 13. cxd5 {[%clk 0:04:28.7]} 13... Nd7 {[%clk
0:03:44.2]} 14. Bh6 {[%clk 0:04:25.6]} 14... Nf6 {[%clk 0:03:37]} 15. Bxg7
{[%clk 0:04:16.6]} 15... Nxh5 {[%clk 0:03:33.1]} 16. Bxf8 {[%clk 0:04:14.6]}
16... Qxf8 {[%clk 0:03:33]} 17. Bxh5 {[%clk 0:04:13.1]} 17... Qg7 {[%clk
0:03:27.1]} 18. g3 {[%clk 0:04:08.6]} 18... Bd7 {[%clk 0:03:24.7]} 19. Qf3
{[%clk 0:03:59.6]} 19... Rf8 {[%clk 0:03:20.5]} 20. O-O-O {[%clk 0:03:54.2]}
20... f5 {[%clk 0:03:12.4]} 21. exf5 {[%clk 0:03:44.2]} 21... Rxf5 {[%clk
0:03:12.3]} 22. Qe2 {[%clk 0:03:35.9]} 22... Qg5+ {[%clk 0:03:09.6]} 23. Kb1
{[%clk 0:03:32.7]} 23... Qxh5 {[%clk 0:03:07.5]} 24. Qxh5 {[%clk 0:03:31.1]}
24... Rxh5 {[%clk 0:03:07.4]} 25. Ne4 {[%clk 0:03:29.8]} 25... Rh6 {[%clk
0:03:01.6]} 26. Rc1 {[%clk 0:03:27.4]} 26... Bf5 {[%clk 0:02:53.9]} 27. f3
{[%clk 0:03:23.2]} 27... Rh3 {[%clk 0:02:27.3]} 28. Rg1 {[%clk 0:02:58.5]} 28...
Rh2 {[%clk 0:02:07.6]} 29. Kc1 {[%clk 0:02:54.4]} 29... Bxe4 {[%clk 0:02:04]}
30. fxe4 {[%clk 0:02:53.6]} 30... Re2 {[%clk 0:02:03.2]} 31. Rf1 {[%clk
0:02:43.5]} 31... Rxe4 {[%clk 0:01:58]} 32. Rf6 {[%clk 0:02:41.9]} 32... Rg4
{[%clk 0:01:51.3]} 33. Rxd6 {[%clk 0:02:40.6]} 33... Rxg3 {[%clk 0:01:49.8]} 34.
Re6 {[%clk 0:02:37.3]} 34... Rg5 {[%clk 0:01:46.4]} 35. d6 {[%clk 0:02:36]}
35... Rg7 {[%clk 0:01:36.8]} 36. Rxe5 {[%clk 0:02:30.3]} 36... Rd7 {[%clk
0:01:36.3]} 37. Rd5 {[%clk 0:02:28.4]} 37... Kf8 {[%clk 0:01:35.4]} 38. Rf5+
{[%clk 0:02:10.2]} 38... Kg7 {[%clk 0:01:31.8]} 39. Rg5+ {[%clk 0:02:02.5]}
39... Kf6 {[%clk 0:01:29.3]} 40. Rh5 {[%clk 0:01:58]} 40... Kg6 {[%clk
0:01:26.6]} 41. Rd5 {[%clk 0:01:55.8]} 41... Kf6 {[%clk 0:01:25.4]} 42. Rh5
{[%clk 0:01:54.3]} 42... Kg6 {[%clk 0:01:24.5]} 43. Rd5 {[%clk 0:01:53.1]} 43...
Kf6 {[%clk 0:01:23.2]} 44. Rh5 {[%clk 0:01:50.8]} 1/2-1/2

[Event "Live Chess"]
[Site "Chess.com"]
[Date "2023.05.20"]
[Round "-"]
[White "lightningorderyt"]
[Black "JoshMcK"]
[Result "0-1"]
[WhiteElo "519"]
[BlackElo "1563"]
[TimeControl "300"]
[EndTime "15:06:55 PDT"]
[Termination "JoshMcK won by resignation"]

1. d4 {[%clk 0:04:59.1]} 1... d5 {[%clk 0:04:57.8]} 2. c4 {[%clk 0:04:56.8]}
2... e6 {[%clk 0:04:56.4]} 3. Nc3 {[%clk 0:04:55.2]} 3... Nf6 {[%clk 0:04:53.4]}
4. Bg5 {[%clk 0:04:53]} 4... Be7 {[%clk 0:04:51.4]} 5. e3 {[%clk 0:04:51.7]}
5... O-O {[%clk 0:04:50.4]} 6. Nf3 {[%clk 0:04:49.2]} 6... dxc4 {[%clk
0:04:49.2]} 7. Bxc4 {[%clk 0:04:47.3]} 7... Nc6 {[%clk 0:04:47.3]} 8. Qb3 {[%clk
0:04:42.3]} 8... Na5 {[%clk 0:04:43.5]} 9. Qa4 {[%clk 0:04:32.3]} 9... Nxc4
{[%clk 0:04:41.1]} 10. Qxc4 {[%clk 0:04:31.7]} 10... Bd7 {[%clk 0:04:39.6]} 11.
Qb3 {[%clk 0:04:28.2]} 11... Bc6 {[%clk 0:04:38.1]} 12. Ne5 {[%clk 0:04:23.4]}
12... Bxg2 {[%clk 0:04:34.3]} 13. Bxf6 {[%clk 0:04:15.4]} 13... Bxh1 {[%clk
0:04:28.2]} 14. Bxe7 {[%clk 0:04:13.6]} 14... Qxe7 {[%clk 0:04:26.8]} 15. Kd1
{[%clk 0:04:12]} 15... Qg5 {[%clk 0:04:20.7]} 16. Ke2 {[%clk 0:04:06.4]} 16...
Qh5+ {[%clk 0:04:13.7]} 17. f3 {[%clk 0:04:05.5]} 17... Qxh2+ {[%clk 0:04:11.7]}
18. Kd3 {[%clk 0:04:01.2]} 18... Qh5 {[%clk 0:04:01.5]} 19. Qxb7 {[%clk
0:03:55.1]} 19... Rfd8 {[%clk 0:03:51]} 20. Nc6 {[%clk 0:03:51]} 20... Rf8
{[%clk 0:03:44.6]} 21. Ne7+ {[%clk 0:03:47.8]} 21... Kh8 {[%clk 0:03:43.3]} 22.
f4 {[%clk 0:03:34.4]} 22... Bxb7 {[%clk 0:03:40.4]} 0-1

[Event "Live Chess"]
[Site "Chess.com"]
[Date "2023.05.20"]
[Round "-"]
[White "ExIsambard"]
[Black "DaveL5678"]
[Result "0-1"]
[WhiteElo "1950"]
[BlackElo "1025"]
[TimeControl "300"]
[EndTime "15:06:57 PDT"]
[Termination "DaveL5678 won by resignation"]

1. d4 {[%clk 0:04:53.1]} 1... Nf6 {[%clk 0:04:54.6]} 2. Nf3 {[%clk 0:04:49.4]}
2... e6 {[%clk 0:04:52.3]} 3. Bg5 {[%clk 0:04:48.5]} 3... Nc6 {[%clk 0:04:44.5]}
4. e3 {[%clk 0:04:41.3]} 4... g6 {[%clk 0:04:40.3]} 5. Bd3 {[%clk 0:04:39.6]}
5... Bg7 {[%clk 0:04:35.1]} 6. Nbd2 {[%clk 0:04:37.5]} 6... O-O {[%clk
0:04:31.2]} 7. h4 {[%clk 0:04:35.3]} 7... Qe7 {[%clk 0:04:16.5]} 8. h5 {[%clk
0:04:34.4]} 8... Qb4 {[%clk 0:04:10.5]} 9. hxg6 {[%clk 0:04:26.6]} 9... fxg6
{[%clk 0:04:08.7]} 10. Bh6 {[%clk 0:04:11.7]} 10... Qxb2 {[%clk 0:03:56.1]} 11.
Bxg7 {[%clk 0:04:07.6]} 11... Kxg7 {[%clk 0:03:55.3]} 12. Ng5 {[%clk 0:04:05.8]}
12... Nb4 {[%clk 0:03:40.7]} 13. Rb1 {[%clk 0:03:59.3]} 13... Nxd3+ {[%clk
0:03:36.1]} 14. cxd3 {[%clk 0:03:56.1]} 14... Qc3 {[%clk 0:03:29.7]} 15. Rb3
{[%clk 0:03:40.8]} 15... Qa5 {[%clk 0:03:20.4]} 16. Qf3 {[%clk 0:03:07.4]} 16...
Qxg5 {[%clk 0:03:13.8]} 0-1

[Event "Live Chess"]
[Site "Chess.com"]
[Date "2023.05.20"]
[Round "-"]
[White "MrBlond89"]
[Black "LodeshChess"]
[Result "1-0"]
[WhiteElo "1380"]
[BlackElo "1064"]
[TimeControl "300"]
[EndTime "15:07:05 PDT"]
[Termination "MrBlond89 won by resignation"]

1. e4 {[%clk 0:04:59]} 1... c6 {[%clk 0:04:58.9]} 2. Nf3 {[%clk 0:04:58]} 2...
d5 {[%clk 0:04:57.8]} 3. d3 {[%clk 0:04:57.4]} 3... dxe4 {[%clk 0:04:54.2]} 4.
Ng5 {[%clk 0:04:56.7]} 4... exd3 {[%clk 0:04:53.4]} 5. Bxd3 {[%clk 0:04:56.4]}
5... Nd7 {[%clk 0:04:52.5]} 6. Be3 {[%clk 0:04:53.2]} 6... h6 {[%clk 0:04:51.3]}
7. Nf3 {[%clk 0:04:52.4]} 7... Ngf6 {[%clk 0:04:50]} 8. Nc3 {[%clk 0:04:51.7]}
8... e6 {[%clk 0:04:49.5]} 9. O-O {[%clk 0:04:51]} 9... Bb4 {[%clk 0:04:48.2]}
10. Ne4 {[%clk 0:04:38.9]} 10... O-O {[%clk 0:04:41.1]} 11. a3 {[%clk
0:04:37.8]} 11... Ba5 {[%clk 0:04:34.5]} 12. b4 {[%clk 0:04:36.4]} 12... Bb6
{[%clk 0:04:33.6]} 13. c4 {[%clk 0:04:33.7]} 13... Bxe3 {[%clk 0:04:31.6]} 14.
fxe3 {[%clk 0:04:32.7]} 14... Nxe4 {[%clk 0:04:07.4]} 15. Bxe4 {[%clk
0:04:31.5]} 15... c5 {[%clk 0:04:07.1]} 16. Ra2 {[%clk 0:04:15.7]} 16... Rb8
{[%clk 0:04:01.5]} 17. Raf2 {[%clk 0:04:12.9]} 17... b6 {[%clk 0:03:54.7]} 18.
Bb1 {[%clk 0:04:10.9]} 18... cxb4 {[%clk 0:03:46]} 19. Qc2 {[%clk 0:04:09.3]}
19... Nf6 {[%clk 0:03:43.5]} 20. axb4 {[%clk 0:04:06.2]} 20... Ba6 {[%clk
0:03:35]} 21. b5 {[%clk 0:03:55.1]} 21... Bb7 {[%clk 0:03:34]} 22. h3 {[%clk
0:03:45.1]} 22... Rc8 {[%clk 0:03:33.2]} 23. Ne5 {[%clk 0:03:19]} 23... Bd5
{[%clk 0:03:08.1]} 24. Ng4 {[%clk 0:03:16.8]} 24... Be4 {[%clk 0:02:52.5]} 25.
Nxf6+ {[%clk 0:03:14.2]} 25... gxf6 {[%clk 0:02:39.6]} 26. Qxe4 {[%clk
0:03:12.5]} 26... f5 {[%clk 0:02:38.3]} 27. Rxf5 {[%clk 0:03:03]} 27... exf5
{[%clk 0:02:28.6]} 28. Qxf5 {[%clk 0:03:01.7]} 1-0

[Event "Live Chess"]
[Site "Chess.com"]
[Date "2023.05.20"]
[Round "-"]
[White "Ed_Knox"]
[Black "CeladonFish"]
[Result "1-0"]
[WhiteElo "1441"]
[BlackElo "1158"]
[TimeControl "300"]
[EndTime "15:07:07 PDT"]
[Termination "Ed_Knox won by resignation"]

1. d4 {[%clk 0:04:57.2]} 1... d6 {[%clk 0:04:59.2]} 2. Bf4 {[%clk 0:04:48.7]}
2... Nf6 {[%clk 0:04:58.2]} 3. Nf3 {[%clk 0:04:46.1]} 3... g6 {[%clk 0:04:56.9]}
4. Nc3 {[%clk 0:04:41]} 4... Bg7 {[%clk 0:04:55.2]} 5. e4 {[%clk 0:04:40]} 5...
Nc6 {[%clk 0:04:44.4]} 6. Qd2 {[%clk 0:04:37.8]} 6... Nh5 {[%clk 0:04:40.7]} 7.
Bh6 {[%clk 0:04:33.8]} 7... Bg4 {[%clk 0:04:19.2]} 8. Bxg7 {[%clk 0:04:16.1]}
8... Nxg7 {[%clk 0:04:18]} 9. Qh6 {[%clk 0:04:14.1]} 9... O-O {[%clk 0:04:16.6]}
10. d5 {[%clk 0:03:59.6]} 10... Bxf3 {[%clk 0:04:08.3]} 11. dxc6 {[%clk
0:03:48.9]} 11... bxc6 {[%clk 0:04:07.1]} 12. gxf3 {[%clk 0:03:44.2]} 12... Qb8
{[%clk 0:04:04.9]} 13. Rb1 {[%clk 0:03:34.8]} 13... Qb4 {[%clk 0:03:55.5]} 14.
a3 {[%clk 0:03:27.1]} 14... Qd4 {[%clk 0:03:51.2]} 15. Bd3 {[%clk 0:03:17.5]}
15... c5 {[%clk 0:03:46]} 16. Nb5 {[%clk 0:02:54.1]} 16... Rab8 {[%clk
0:03:36.9]} 17. Nxd4 {[%clk 0:02:51.8]} 17... cxd4 {[%clk 0:03:35]} 1-0

[Event "Live Chess"]
[Site "Chess.com"]
[Date "2023.05.20"]
[Round "-"]
[White "Mikhail_Golubev"]
[Black "Alan_Richardson"]
[Result "1-0"]
[WhiteElo "2505"]
[BlackElo "1675"]
[TimeControl "300"]
[EndTime "15:07:32 PDT"]
[Termination "Mikhail_Golubev won on time"]

1. e4 {[%clk 0:04:57.9]} 1... c5 {[%clk 0:04:58.3]} 2. Nf3 {[%clk 0:04:55.7]}
2... Nc6 {[%clk 0:04:57.1]} 3. c3 {[%clk 0:04:50.3]} 3... Nf6 {[%clk 0:04:54.3]}
4. e5 {[%clk 0:04:48.6]} 4... Nd5 {[%clk 0:04:52.6]} 5. d4 {[%clk 0:04:47.8]}
5... cxd4 {[%clk 0:04:47.2]} 6. Bc4 {[%clk 0:04:46.7]} 6... Nb6 {[%clk
0:04:44.5]} 7. Bb3 {[%clk 0:04:45.7]} 7... d5 {[%clk 0:04:40.9]} 8. exd6 {[%clk
0:04:44.5]} 8... Qxd6 {[%clk 0:04:33.5]} 9. O-O {[%clk 0:04:42.6]} 9... dxc3
{[%clk 0:04:13.4]} 10. Nxc3 {[%clk 0:04:29.6]} 10... Qxd1 {[%clk 0:03:56.6]} 11.
Rxd1 {[%clk 0:04:29.5]} 11... Bg4 {[%clk 0:03:53.4]} 12. Nb5 {[%clk 0:04:16.8]}
12... Rc8 {[%clk 0:03:46.5]} 13. Bf4 {[%clk 0:03:46.7]} 13... Bxf3 {[%clk
0:03:35]} 14. gxf3 {[%clk 0:03:43.7]} 14... e5 {[%clk 0:03:29.2]} 15. Be3 {[%clk
0:03:42.8]} 15... Be7 {[%clk 0:03:15.2]} 16. Nxa7 {[%clk 0:03:35]} 16... Nxa7
{[%clk 0:03:12.9]} 17. Bxb6 {[%clk 0:03:34.7]} 17... Nc6 {[%clk 0:03:10.6]} 18.
Rac1 {[%clk 0:03:24]} 18... O-O {[%clk 0:03:07.6]} 19. Rd7 {[%clk 0:03:17.6]}
19... Bg5 {[%clk 0:02:47.8]} 20. Rcd1 {[%clk 0:03:16.3]} 20... Nd4 {[%clk
0:02:24.1]} 21. Bxd4 {[%clk 0:03:12.7]} 21... exd4 {[%clk 0:02:22.4]} 22. R1xd4
{[%clk 0:03:07.9]} 22... Bf6 {[%clk 0:02:11.5]} 23. Rb4 {[%clk 0:03:06.1]} 23...
Bxb2 {[%clk 0:01:58.2]} 24. Rbxb7 {[%clk 0:03:04.2]} 24... Kh8 {[%clk
0:01:49.1]} 25. Bxf7 {[%clk 0:02:52.2]} 25... Be5 {[%clk 0:01:38.9]} 26. Rd2
{[%clk 0:02:39]} 26... Rc1+ {[%clk 0:01:22.6]} 27. Kg2 {[%clk 0:02:37.6]} 27...
Ra1 {[%clk 0:01:21.5]} 28. Re2 {[%clk 0:02:34]} 28... Bf6 {[%clk 0:01:09.9]} 29.
Bb3 {[%clk 0:02:28.2]} 29... Rc1 {[%clk 0:01:03.4]} 30. Rc2 {[%clk 0:02:24.3]}
30... Ra1 {[%clk 0:00:59.5]} 31. Rbc7 {[%clk 0:02:21.8]} 31... h6 {[%clk
0:00:44.8]} 32. Rc8 {[%clk 0:02:19.6]} 32... Rxc8 {[%clk 0:00:35]} 33. Rxc8+
{[%clk 0:02:19.5]} 33... Kh7 {[%clk 0:00:33.9]} 34. Bc2+ {[%clk 0:02:18.2]}
34... g6 {[%clk 0:00:32.5]} 35. Rc7+ {[%clk 0:02:08.5]} 35... Bg7 {[%clk
0:00:30.4]} 36. Ra7 {[%clk 0:01:57.3]} 36... h5 {[%clk 0:00:26]} 37. Ra6 {[%clk
0:01:55.3]} 37... Kg8 {[%clk 0:00:18.8]} 38. Bxg6 {[%clk 0:01:53.7]} 38... Be5
{[%clk 0:00:15]} 39. Bxh5 {[%clk 0:01:48.9]} 39... Kg7 {[%clk 0:00:11.6]} 40.
Bg4 {[%clk 0:01:42.4]} 40... Bf4 {[%clk 0:00:09.5]} 41. h4 {[%clk 0:01:40.3]}
41... Be5 {[%clk 0:00:04.5]} 42. h5 {[%clk 0:01:38.2]} 42... Bf4 {[%clk
0:00:02.7]} 43. Rg6+ {[%clk 0:01:36.3]} 43... Kf7 {[%clk 0:00:00.4]} 44. Be6+
{[%clk 0:01:33.2]} 1-0

[Event "Live Chess"]
[Site "Chess.com"]
[Date "2023.05.20"]
[Round "-"]
[White "risinghelios"]
[Black "xx_blindpuffin_xx"]
[Result "0-1"]
[WhiteElo "1916"]
[BlackElo "2211"]
[TimeControl "300"]
[EndTime "15:07:42 PDT"]
[Termination "xx_blindpuffin_xx won by resignation"]

1. e4 {[%clk 0:04:58.8]} 1... c6 {[%clk 0:04:57.5]} 2. d4 {[%clk 0:04:58]} 2...
d5 {[%clk 0:04:55.6]} 3. exd5 {[%clk 0:04:57.9]} 3... cxd5 {[%clk 0:04:54.2]} 4.
Nf3 {[%clk 0:04:57.5]} 4... Nf6 {[%clk 0:04:53.1]} 5. Bb5+ {[%clk 0:04:56.4]}
5... Nc6 {[%clk 0:04:51.9]} 6. O-O {[%clk 0:04:55.3]} 6... Bf5 {[%clk
0:04:47.4]} 7. c3 {[%clk 0:04:54.4]} 7... e6 {[%clk 0:04:46.2]} 8. Ne5 {[%clk
0:04:52.8]} 8... Rc8 {[%clk 0:04:44.3]} 9. Qa4 {[%clk 0:04:51.8]} 9... Qb6
{[%clk 0:04:42.3]} 10. Nd2 {[%clk 0:04:47.4]} 10... Bd6 {[%clk 0:04:35.4]} 11.
Ndf3 {[%clk 0:04:45.9]} 11... a6 {[%clk 0:04:32.6]} 12. Bxc6+ {[%clk 0:04:44.6]}
12... bxc6 {[%clk 0:04:32.5]} 13. Bg5 {[%clk 0:04:41.5]} 13... Qb5 {[%clk
0:04:22.3]} 14. Qxb5 {[%clk 0:04:37.6]} 14... cxb5 {[%clk 0:04:15.4]} 15. a4
{[%clk 0:04:37.5]} 15... b4 {[%clk 0:04:13.8]} 16. Bd2 {[%clk 0:04:32.6]} 16...
b3 {[%clk 0:04:03.9]} 17. Bf4 {[%clk 0:04:24.9]} 17... O-O {[%clk 0:04:00.3]}
18. Nd2 {[%clk 0:04:23.4]} 18... Bc2 {[%clk 0:03:55.6]} 19. Bg3 {[%clk
0:04:16.8]} 19... Rfd8 {[%clk 0:03:45.6]} 20. f4 {[%clk 0:04:15.8]} 20... Ne4
{[%clk 0:03:35.8]} 21. Nxe4 {[%clk 0:04:12.1]} 21... Bxe4 {[%clk 0:03:24.8]} 22.
Rfc1 {[%clk 0:03:52]} 22... h5 {[%clk 0:03:20.7]} 23. Re1 {[%clk 0:03:46.7]}
23... f6 {[%clk 0:03:11.9]} 24. Nf3 {[%clk 0:03:42.8]} 24... Kf7 {[%clk
0:03:06.5]} 25. Kf2 {[%clk 0:03:41]} 25... Rc7 {[%clk 0:02:51.3]} 26. Nd2 {[%clk
0:03:22.6]} 26... Bc2 {[%clk 0:02:49.9]} 27. Nf3 {[%clk 0:03:11.5]} 27... Rb8
{[%clk 0:02:48.5]} 28. Nh4 {[%clk 0:03:03.8]} 28... g5 {[%clk 0:02:39.3]} 29.
fxg5 {[%clk 0:03:03.7]} 29... Bxg3+ {[%clk 0:02:37.6]} 30. Kxg3 {[%clk
0:03:00.4]} 30... fxg5 {[%clk 0:02:37.5]} 31. Nf3 {[%clk 0:02:59.7]} 31... Kf6
{[%clk 0:02:34.3]} 32. Ne5 {[%clk 0:02:56.6]} 32... Bf5 {[%clk 0:02:31.7]} 33.
Rf1 {[%clk 0:02:52.5]} 33... h4+ {[%clk 0:02:23.3]} 34. Kf3 {[%clk 0:02:49.1]}
34... Ke7 {[%clk 0:02:19.4]} 35. Ke3 {[%clk 0:02:42.7]} 35... Kd6 {[%clk
0:02:16.2]} 36. g3 {[%clk 0:02:37.2]} 36... hxg3 {[%clk 0:02:14.6]} 37. hxg3
{[%clk 0:02:37.1]} 37... g4 {[%clk 0:02:11.4]} 38. Rf4 {[%clk 0:02:33.9]} 38...
Rh7 {[%clk 0:01:48.4]} 39. Nxg4 {[%clk 0:02:29.8]} 39... Rg8 {[%clk 0:01:44.6]}
40. Nf6 {[%clk 0:02:19.9]} 40... Rxg3+ {[%clk 0:01:43.4]} 41. Kf2 {[%clk
0:02:17.6]} 41... Rhh3 {[%clk 0:01:34.8]} 42. Rg1 {[%clk 0:02:11.6]} 42... Rxg1
{[%clk 0:01:28.2]} 43. Kxg1 {[%clk 0:02:08.3]} 43... Rd3 {[%clk 0:01:20.5]} 44.
Rf2 {[%clk 0:02:03]} 44... Rd1+ {[%clk 0:01:09.2]} 45. Kg2 {[%clk 0:02:01.2]}
45... Ra1 {[%clk 0:01:07.7]} 46. Ne8+ {[%clk 0:01:56.2]} 46... Kd7 {[%clk
0:01:04.9]} 47. Nf6+ {[%clk 0:01:55.1]} 47... Kc6 {[%clk 0:01:00.4]} 48. Ne8
{[%clk 0:01:50.2]} 48... Rxa4 {[%clk 0:00:56.8]} 49. Ng7 {[%clk 0:01:49.8]}
49... Be4+ {[%clk 0:00:43.7]} 50. Kg3 {[%clk 0:01:47.1]} 50... Ra1 {[%clk
0:00:38.8]} 51. Nxe6 {[%clk 0:01:44.3]} 51... Kd6 {[%clk 0:00:38]} 52. Nd8
{[%clk 0:01:40.5]} 52... Rb1 {[%clk 0:00:35.6]} 53. Nb7+ {[%clk 0:01:38.5]}
53... Kc6 {[%clk 0:00:33.5]} 54. Nc5 {[%clk 0:01:37.9]} 54... Bc2 {[%clk
0:00:31.5]} 55. Nxa6 {[%clk 0:01:35.4]} 55... Rxb2 {[%clk 0:00:29.9]} 56. Nb4+
{[%clk 0:01:32.9]} 56... Kb5 {[%clk 0:00:29.4]} 57. Nxd5 {[%clk 0:01:31.3]}
57... Kc4 {[%clk 0:00:28.7]} 58. Ne3+ {[%clk 0:01:20.9]} 58... Kd3 {[%clk
0:00:27.8]} 59. Nxc2 {[%clk 0:01:18.9]} 59... bxc2 {[%clk 0:00:26.9]} 60. Rf3+
{[%clk 0:01:15.3]} 60... Kc4 {[%clk 0:00:25.4]} 61. Rf1 {[%clk 0:01:11.9]} 61...
Rb1 {[%clk 0:00:24.6]} 0-1